[Event "Titled Tuesday Blitz November 14 Early 2023"]
[White "Kiremitciyan, Ari"]
[Black "Rosen, Eric"]
[WhiteFideId "6373445"]
[BlackFideId "2032562"]
[WhiteElo "2526"]
[BlackElo "2782"]
[Result "0-1"]
[Round "4"]
[TimeControl "180+1"]
[Date "2023.11.14"]
[WhiteClock "0:00:00"]
[BlackClock "0:00:05"]
[Board "110"]

1. Nf3 {[%clk 0:03:00]}  d5 {[%clk 0:02:44]} 2. b3 {[%clk 0:03:00]}  Nf6 {[%clk 0:02:40]} 3. Bb2 {[%clk 0:03:00]}  Bg4 {[%clk 0:02:38]} 4. e3 {[%clk 0:03:00]}  e6 {[%clk 0:02:38]} 5. Be2 {[%clk 0:02:59]}  Nbd7 {[%clk 0:02:38]} 6. d4 {[%clk 0:02:58]}  Bd6 {[%clk 0:02:39]} 7. O-O {[%clk 0:02:57]}  c6 {[%clk 0:02:36]} 8. c4 {[%clk 0:02:57]}  h5 {[%clk 0:02:29]} 9. h3 {[%clk 0:02:53]}  Bxf3 {[%clk 0:02:29]} 10. Bxf3 {[%clk 0:02:54]}  g5 {[%clk 0:02:30]} 11. g4 {[%clk 0:02:36]}  hxg4 {[%clk 0:02:26]} 12. hxg4 {[%clk 0:02:36]}  Qc7 {[%clk 0:01:51]} 13. Re1 {[%clk 0:02:29]}  Bb4 {[%clk 0:01:33]} 14. Nc3 {[%clk 0:02:23]}  Qh2+ {[%clk 0:01:20]} 15. Kf1 {[%clk 0:02:23]}  Ne4 {[%clk 0:01:09]} 16. Bxe4 {[%clk 0:02:11]}  dxe4 {[%clk 0:01:09]} 17. Ke2 {[%clk 0:01:57]}  Qh3 {[%clk 0:00:51]} 18. Rg1 {[%clk 0:01:51]}  O-O-O {[%clk 0:00:51]} 19. Nxe4 {[%clk 0:01:41]}  Be7 {[%clk 0:00:24]} 20. Qf1 {[%clk 0:01:33]}  Qh7 {[%clk 0:00:23]} 21. Qg2 {[%clk 0:01:25]}  Qg6 {[%clk 0:00:13]} 22. Rh1 {[%clk 0:00:48]}  Nf6 {[%clk 0:00:12]} 23. f3 {[%clk 0:00:44]}  Rhg8 {[%clk 0:00:04]} 24. Rh3 {[%clk 0:00:39]}  Nd7 {[%clk 0:00:05]} 25. Rah1 {[%clk 0:00:38]}  Bf8 {[%clk 0:00:05]} 26. Rh8 {[%clk 0:00:34]}  f5 {[%clk 0:00:04]} 27. Rxg8 {[%clk 0:00:30]}  Qxg8 {[%clk 0:00:05]} 28. Nc3 {[%clk 0:00:30]}  f4 {[%clk 0:00:03]} 29. e4 {[%clk 0:00:24]}  Nb6 {[%clk 0:00:02]} 30. Rd1 {[%clk 0:00:16]}  Bb4 {[%clk 0:00:02]} 31. Nb1 {[%clk 0:00:15]}  Qh7 {[%clk 0:00:02]} 32. Rh1 {[%clk 0:00:15]}  Qf7 {[%clk 0:00:01]} 33. a3 {[%clk 0:00:14]}  Be7 {[%clk 0:00:02]} 34. Qh3 {[%clk 0:00:15]}  e5 {[%clk 0:00:01]} 35. Qh5 {[%clk 0:00:12]}  Qe6 {[%clk 0:00:01]} 36. Qh6 {[%clk 0:00:11]}  Qd7 {[%clk 0:00:01]} 37. Rd1 {[%clk 0:00:07]}  Qc7 {[%clk 0:00:01]} 38. Qg6 {[%clk 0:00:07]}  Rf8 {[%clk 0:00:01]} 39. Qe6+ {[%clk 0:00:07]}  Nd7 {[%clk 0:00:01]} 40. d5 {[%clk 0:00:06]}  Bd6 {[%clk 0:00:01]} 41. dxc6 {[%clk 0:00:06]}  bxc6 {[%clk 0:00:02]} 42. Qxd6 {[%clk 0:00:06]}  Rh8 {[%clk 0:00:02]} 43. Qxc7+ {[%clk 0:00:06]}  Kxc7 {[%clk 0:00:03]} 44. Rf1 {[%clk 0:00:05]}  Rh2+ {[%clk 0:00:03]} 45. Rf2 {[%clk 0:00:06]}  Rh1 {[%clk 0:00:04]} 46. Nd2 {[%clk 0:00:06]}  Kd6 {[%clk 0:00:04]} 47. Bc3 {[%clk 0:00:06]}  Ke6 {[%clk 0:00:03]} 48. Bb4 {[%clk 0:00:06]}  Nb6 {[%clk 0:00:02]} 49. Nf1 {[%clk 0:00:06]}  Rh3 {[%clk 0:00:02]} 50. Bc3 {[%clk 0:00:06]}  Nd7 {[%clk 0:00:02]} 51. Bb2 {[%clk 0:00:07]}  Nc5 {[%clk 0:00:02]} 52. Nd2 {[%clk 0:00:06]}  Rh1 {[%clk 0:00:01]} 53. Rf1 {[%clk 0:00:05]}  Rh2+ {[%clk 0:00:02]} 54. Rf2 {[%clk 0:00:06]}  Rh1 {[%clk 0:00:01]} 55. b4 {[%clk 0:00:06]}  Na4 {[%clk 0:00:01]} 56. Rf1 {[%clk 0:00:06]}  Rh2+ {[%clk 0:00:01]} 57. Rf2 {[%clk 0:00:06]}  Rh1 {[%clk 0:00:01]} 58. Rf1 {[%clk 0:00:05]}  Rh2+ {[%clk 0:00:02]} 59. Rf2 {[%clk 0:00:06]}  Rxf2+ {[%clk 0:00:02]} 60. Kxf2 {[%clk 0:00:06]}  Nxb2 {[%clk 0:00:03]} 61. c5 {[%clk 0:00:06]}  Kd7 {[%clk 0:00:02]} 62. Ke2 {[%clk 0:00:06]}  Ke6 {[%clk 0:00:01]} 63. Ke1 {[%clk 0:00:05]}  Kd7 {[%clk 0:00:01]} 64. Ke2 {[%clk 0:00:05]}  Kc7 {[%clk 0:00:02]} 65. Nf1 {[%clk 0:00:04]}  Kb7 {[%clk 0:00:01]} 66. Kd2 {[%clk 0:00:05]}  Nc4+ {[%clk 0:00:01]} 67. Kc3 {[%clk 0:00:05]}  Nxa3 {[%clk 0:00:02]} 68. Nd2 {[%clk 0:00:04]}  Nb5+ {[%clk 0:00:03]} 69. Kd3 {[%clk 0:00:03]}  Nd4 {[%clk 0:00:03]} 70. Nc4 {[%clk 0:00:01]}  Nxf3 {[%clk 0:00:03]} 71. Ke2 {[%clk 0:00:01]}  Nd4+ {[%clk 0:00:03]} 72. Kd3 {[%clk 0:00:02]}  f3 {[%clk 0:00:03]} 73. Ke3 {[%clk 0:00:01]}  f2 {[%clk 0:00:03]} 74. Kxf2 {[%clk 0:00:01]}  Nc2 {[%clk 0:00:04]} 75. Nxe5 {[%clk 0:00:01]}  Nxb4 {[%clk 0:00:05]} 76. Nf7 {[%clk 0:00:02]}  Nd3+ {[%clk 0:00:05]} 77. Ke3 {[%clk 0:00:02]}  Nxc5 {[%clk 0:00:05]} 78. Nxg5 {[%clk 0:00:03]}  a5 {[%clk 0:00:05]} 79. Kd4 {[%clk 0:00:03]}  Kb6 {[%clk 0:00:06]} 80. Nf3 {[%clk 0:00:02]}  Kb5 {[%clk 0:00:05]} 81. g5 {[%clk 0:00:03]}  Kb4 {[%clk 0:00:05]} 82. g6 {[%clk 0:00:03]}  a4 {[%clk 0:00:06]} 83. Nd2 {[%clk 0:00:02]}  a3 {[%clk 0:00:05]} 84. Nc4 {[%clk 0:00:00]}  a2 {[%clk 0:00:05]} 0-1


[Site "https://www.chess.com"]

[Event "Titled Tuesday Blitz November 14 Early 2023"]
[White "Kanyamarala, Tarun"]
[Black "JuniorJumper"]
[WhiteFideId "45004714"]
[WhiteElo "2484"]
[BlackElo "2602"]
[Result "1-0"]
[Round "4"]
[TimeControl "180+1"]
[Date "2023.11.14"]
[WhiteClock "0:00:37"]
[BlackClock "0:00:09"]
[Board "118"]

1. e4 {[%clk 0:02:55]}  b6 {[%clk 0:02:54]} 2. d4 {[%clk 0:02:54]}  Bb7 {[%clk 0:02:55]} 3. Bd3 {[%clk 0:02:52]}  e6 {[%clk 0:02:55]} 4. Nf3 {[%clk 0:02:49]}  Nf6 {[%clk 0:02:53]} 5. Qe2 {[%clk 0:02:49]}  d5 {[%clk 0:02:51]} 6. Nbd2 {[%clk 0:02:47]}  dxe4 {[%clk 0:02:49]} 7. Nxe4 {[%clk 0:02:47]}  Nbd7 {[%clk 0:02:49]} 8. Ng3 {[%clk 0:02:45]}  Bd6 {[%clk 0:02:47]} 9. Nf5 {[%clk 0:02:35]}  O-O {[%clk 0:02:40]} 10. Nxd6 {[%clk 0:02:35]}  cxd6 {[%clk 0:02:41]} 11. Bf4 {[%clk 0:02:31]}  e5 {[%clk 0:01:52]} 12. dxe5 {[%clk 0:02:29]}  dxe5 {[%clk 0:01:40]} 13. Nxe5 {[%clk 0:02:28]}  Nd5 {[%clk 0:01:31]} 14. Bg3 {[%clk 0:02:21]}  Nxe5 {[%clk 0:01:29]} 15. Bxe5 {[%clk 0:02:18]}  Re8 {[%clk 0:01:08]} 16. O-O-O {[%clk 0:02:10]}  Qg5+ {[%clk 0:00:37]} 17. f4 {[%clk 0:02:09]}  Nxf4 {[%clk 0:00:38]} 18. Bxf4 {[%clk 0:02:09]}  Qxf4+ {[%clk 0:00:38]} 19. Qd2 {[%clk 0:02:10]}  Qxd2+ {[%clk 0:00:36]} 20. Rxd2 {[%clk 0:02:10]}  Re7 {[%clk 0:00:37]} 21. b3 {[%clk 0:02:05]}  Rae8 {[%clk 0:00:37]} 22. Kb2 {[%clk 0:01:55]}  g6 {[%clk 0:00:37]} 23. Rf1 {[%clk 0:01:52]}  Kg7 {[%clk 0:00:36]} 24. a4 {[%clk 0:01:50]}  Re5 {[%clk 0:00:34]} 25. b4 {[%clk 0:01:48]}  R8e7 {[%clk 0:00:32]} 26. Ra1 {[%clk 0:01:42]}  a5 {[%clk 0:00:30]} 27. bxa5 {[%clk 0:01:34]}  Rxa5 {[%clk 0:00:27]} 28. Bb5 {[%clk 0:01:34]}  Ba6 {[%clk 0:00:25]} 29. c4 {[%clk 0:01:33]}  Bxb5 {[%clk 0:00:21]} 30. cxb5 {[%clk 0:01:19]}  Rea7 {[%clk 0:00:20]} 31. Rd4 {[%clk 0:01:16]}  Kf6 {[%clk 0:00:19]} 32. Kb3 {[%clk 0:01:06]}  Ke5 {[%clk 0:00:16]} 33. Rad1 {[%clk 0:01:03]}  f5 {[%clk 0:00:15]} 34. Rc4 {[%clk 0:01:01]}  Re7 {[%clk 0:00:06]} 35. Rc6 {[%clk 0:00:59]}  Rea7 {[%clk 0:00:05]} 36. Rc4 {[%clk 0:00:51]}  Re7 {[%clk 0:00:06]} 37. Rd8 {[%clk 0:00:45]}  Re6 {[%clk 0:00:04]} 38. Rd7 {[%clk 0:00:44]}  h6 {[%clk 0:00:04]} 39. Rc6 {[%clk 0:00:42]}  Rxc6 {[%clk 0:00:03]} 40. bxc6 {[%clk 0:00:42]}  Rc5 {[%clk 0:00:04]} 41. c7 {[%clk 0:00:41]}  Ke6 {[%clk 0:00:05]} 42. Rg7 {[%clk 0:00:40]}  Kf6 {[%clk 0:00:05]} 43. Rh7 {[%clk 0:00:40]}  h5 {[%clk 0:00:05]} 44. Kb4 {[%clk 0:00:38]}  f4 {[%clk 0:00:06]} 45. a5 {[%clk 0:00:37]}  Rc2 {[%clk 0:00:02]} 46. axb6 {[%clk 0:00:37]}  Rb2+ {[%clk 0:00:02]} 47. Ka5 {[%clk 0:00:37]}  Ra2+ {[%clk 0:00:03]} 48. Kb5 {[%clk 0:00:37]}  Rb2+ {[%clk 0:00:04]} 49. Ka6 {[%clk 0:00:37]}  Rc2 {[%clk 0:00:05]} 50. Kb7 {[%clk 0:00:36]}  f3 {[%clk 0:00:05]} 51. gxf3 {[%clk 0:00:36]}  Kf5 {[%clk 0:00:05]} 52. c8=Q+ {[%clk 0:00:35]}  Rxc8 {[%clk 0:00:05]} 53. Kxc8 {[%clk 0:00:36]}  Kf4 {[%clk 0:00:06]} 54. Rf7+ {[%clk 0:00:36]}  Ke3 {[%clk 0:00:06]} 55. b7 {[%clk 0:00:36]}  g5 {[%clk 0:00:07]} 56. b8=Q {[%clk 0:00:36]}  g4 {[%clk 0:00:08]} 57. Qf4+ {[%clk 0:00:36]}  Kf2 {[%clk 0:00:08]} 58. fxg4+ {[%clk 0:00:37]}  Kg2 {[%clk 0:00:09]} 59. Qg3+ {[%clk 0:00:37]}  Kh1 {[%clk 0:00:09]} 60. Rf1# {[%clk 0:00:37]} 1-0


[Site "https://www.chess.com"]

[Event "Titled Tuesday Blitz November 14 Early 2023"]
[White "Manukyan, Sargis A."]
[Black "Friedland, Moshe"]
[WhiteFideId "13303970"]
[BlackFideId "2812843"]
[WhiteElo "2592"]
[BlackElo "2431"]
[Result "1-0"]
[Round "4"]
[TimeControl "180+1"]
[Date "2023.11.14"]
[WhiteClock "0:01:28"]
[BlackClock "0:00:00"]
[Board "119"]

1. d4 {[%clk 0:03:00]}  Nf6 {[%clk 0:02:58]} 2. c4 {[%clk 0:03:01]}  c5 {[%clk 0:02:57]} 3. d5 {[%clk 0:03:01]}  b5 {[%clk 0:02:58]} 4. cxb5 {[%clk 0:03:02]}  a6 {[%clk 0:02:58]} 5. bxa6 {[%clk 0:03:03]}  g6 {[%clk 0:02:59]} 6. Nc3 {[%clk 0:03:04]}  Bg7 {[%clk 0:02:59]} 7. Nf3 {[%clk 0:03:05]}  O-O {[%clk 0:02:59]} 8. g3 {[%clk 0:03:05]}  d6 {[%clk 0:03:00]} 9. Bg2 {[%clk 0:03:06]}  Nbd7 {[%clk 0:03:00]} 10. Rb1 {[%clk 0:03:05]}  Nb6 {[%clk 0:02:54]} 11. b3 {[%clk 0:03:04]}  Bf5 {[%clk 0:02:53]} 12. Rb2 {[%clk 0:02:59]}  Ne4 {[%clk 0:02:39]} 13. Nxe4 {[%clk 0:02:58]}  Bxe4 {[%clk 0:02:39]} 14. Rd2 {[%clk 0:02:53]}  Bc3 {[%clk 0:02:32]} 15. O-O {[%clk 0:02:53]}  Bxd2 {[%clk 0:02:31]} 16. Qxd2 {[%clk 0:02:54]}  Bxd5 {[%clk 0:02:28]} 17. Qh6 {[%clk 0:02:50]}  f6 {[%clk 0:02:17]} 18. Bb2 {[%clk 0:02:49]}  e5 {[%clk 0:02:09]} 19. Rd1 {[%clk 0:02:41]}  Bxf3 {[%clk 0:01:43]} 20. exf3 {[%clk 0:02:24]}  Rxa6 {[%clk 0:01:41]} 21. a4 {[%clk 0:02:25]}  Qe7 {[%clk 0:01:32]} 22. f4 {[%clk 0:02:15]}  Rd8 {[%clk 0:01:23]} 23. Bc3 {[%clk 0:02:08]}  e4 {[%clk 0:00:47]} 24. a5 {[%clk 0:01:49]}  Nc8 {[%clk 0:00:47]} 25. Bf1 {[%clk 0:01:49]}  Ra7 {[%clk 0:00:32]} 26. Bc4+ {[%clk 0:01:49]}  Kh8 {[%clk 0:00:31]} 27. Rd5 {[%clk 0:01:35]}  Qg7 {[%clk 0:00:24]} 28. Qh4 {[%clk 0:01:31]}  Rf8 {[%clk 0:00:19]} 29. g4 {[%clk 0:01:29]}  Ne7 {[%clk 0:00:10]} 30. Rxd6 {[%clk 0:01:29]}  g5 {[%clk 0:00:00]} 31. fxg5 {[%clk 0:01:28]} 1-0


[Site "https://www.chess.com"]

[Event "Titled Tuesday Blitz November 14 Early 2023"]
[White "Xie, Bryan"]
[Black "Tikhonov, Viacheslav"]
[WhiteFideId "30941296"]
[BlackFideId "44196407"]
[WhiteElo "2409"]
[BlackElo "2590"]
[Result "0-1"]
[Round "4"]
[TimeControl "180+1"]
[Date "2023.11.14"]
[WhiteClock "0:00:14"]
[BlackClock "0:00:03"]
[Board "120"]

1. e4 {[%clk 0:02:48]}  c5 {[%clk 0:02:59]} 2. Nf3 {[%clk 0:02:47]}  g6 {[%clk 0:03:00]} 3. d4 {[%clk 0:02:45]}  cxd4 {[%clk 0:03:00]} 4. Nxd4 {[%clk 0:02:45]}  Nc6 {[%clk 0:03:01]} 5. Nc3 {[%clk 0:02:46]}  Bg7 {[%clk 0:03:01]} 6. Be3 {[%clk 0:02:47]}  Nf6 {[%clk 0:03:02]} 7. f3 {[%clk 0:02:39]}  O-O {[%clk 0:03:02]} 8. Bc4 {[%clk 0:02:37]}  Qb6 {[%clk 0:03:01]} 9. Bb3 {[%clk 0:02:30]}  Nxe4 {[%clk 0:03:00]} 10. Nd5 {[%clk 0:02:26]}  Qa5+ {[%clk 0:02:59]} 11. c3 {[%clk 0:02:27]}  Nc5 {[%clk 0:02:33]} 12. Nxc6 {[%clk 0:02:21]}  dxc6 {[%clk 0:02:33]} 13. Nxe7+ {[%clk 0:02:22]}  Kh8 {[%clk 0:02:34]} 14. Nxc8 {[%clk 0:02:23]}  Raxc8 {[%clk 0:02:29]} 15. O-O {[%clk 0:02:22]}  Rfe8 {[%clk 0:02:24]} 16. Bf2 {[%clk 0:02:16]}  Rcd8 {[%clk 0:02:04]} 17. Qc2 {[%clk 0:02:10]}  Kg8 {[%clk 0:01:52]} 18. Rfe1 {[%clk 0:02:04]}  Nxb3 {[%clk 0:01:19]} 19. Qxb3 {[%clk 0:01:57]}  b5 {[%clk 0:01:03]} 20. Kh1 {[%clk 0:01:34]}  Qc7 {[%clk 0:00:47]} 21. Bc5 {[%clk 0:01:27]}  Re5 {[%clk 0:00:36]} 22. Rxe5 {[%clk 0:01:10]}  Qxe5 {[%clk 0:00:36]} 23. Bd4 {[%clk 0:01:09]}  Qe2 {[%clk 0:00:33]} 24. Qb4 {[%clk 0:00:45]}  Bxd4 {[%clk 0:00:23]} 25. cxd4 {[%clk 0:00:46]}  a5 {[%clk 0:00:14]} 26. Qc5 {[%clk 0:00:32]}  Qxb2 {[%clk 0:00:14]} 27. Re1 {[%clk 0:00:30]}  Qxd4 {[%clk 0:00:08]} 28. Qxc6 {[%clk 0:00:30]}  Qd2 {[%clk 0:00:06]} 29. Rg1 {[%clk 0:00:24]}  Qe2 {[%clk 0:00:05]} 30. Qb6 {[%clk 0:00:22]}  Rd1 {[%clk 0:00:03]} 31. h4 {[%clk 0:00:20]}  Rxg1+ {[%clk 0:00:02]} 32. Kxg1 {[%clk 0:00:21]}  a4 {[%clk 0:00:02]} 33. a3 {[%clk 0:00:21]}  Kg7 {[%clk 0:00:03]} 34. Qd4+ {[%clk 0:00:20]}  Kf8 {[%clk 0:00:03]} 35. Kh2 {[%clk 0:00:17]}  h5 {[%clk 0:00:03]} 36. Qc5+ {[%clk 0:00:15]}  Kg7 {[%clk 0:00:04]} 37. Qc4 {[%clk 0:00:14]}  bxc4 {[%clk 0:00:03]} 0-1


[Site "https://www.chess.com"]

[Event "Titled Tuesday Blitz November 14 Early 2023"]
[White "aghasiyevkamal"]
[Black "Dmitrenko, Viktor"]
[BlackFideId "14110270"]
[WhiteElo "2576"]
[BlackElo "2372"]
[Result "1/2-1/2"]
[Round "4"]
[TimeControl "180+1"]
[Date "2023.11.14"]
[WhiteClock "0:00:38"]
[BlackClock "0:00:04"]
[Board "121"]

1. e4 {[%clk 0:02:56]}  c5 {[%clk 0:03:00]} 2. Nf3 {[%clk 0:02:43]}  e6 {[%clk 0:02:55]} 3. g3 {[%clk 0:02:42]}  Nc6 {[%clk 0:02:50]} 4. Bg2 {[%clk 0:02:40]}  b6 {[%clk 0:02:25]} 5. O-O {[%clk 0:02:34]}  Bb7 {[%clk 0:02:25]} 6. Re1 {[%clk 0:02:26]}  d6 {[%clk 0:02:19]} 7. c3 {[%clk 0:02:23]}  Be7 {[%clk 0:02:12]} 8. d4 {[%clk 0:02:23]}  cxd4 {[%clk 0:02:12]} 9. cxd4 {[%clk 0:02:23]}  d5 {[%clk 0:02:09]} 10. exd5 {[%clk 0:02:19]}  Qxd5 {[%clk 0:02:09]} 11. Nc3 {[%clk 0:02:10]}  Qd7 {[%clk 0:02:00]} 12. d5 {[%clk 0:02:00]}  exd5 {[%clk 0:01:50]} 13. Ng5 {[%clk 0:01:20]}  Nf6 {[%clk 0:01:32]} 14. Nxd5 {[%clk 0:01:10]}  Nxd5 {[%clk 0:01:03]} 15. Bxd5 {[%clk 0:01:08]}  Nd8 {[%clk 0:00:36]} 16. Bxf7+ {[%clk 0:00:51]}  Nxf7 {[%clk 0:00:33]} 17. Qxd7+ {[%clk 0:00:51]}  Kxd7 {[%clk 0:00:33]} 18. Nxf7 {[%clk 0:00:52]}  Rhe8 {[%clk 0:00:20]} 19. Bf4 {[%clk 0:00:48]}  Bd5 {[%clk 0:00:03]} 20. Rad1 {[%clk 0:00:43]}  Kc6 {[%clk 0:00:03]} 21. Ne5+ {[%clk 0:00:43]}  Kb7 {[%clk 0:00:04]} 22. Rxd5 {[%clk 0:00:38]}  Bc5 {[%clk 0:00:04]} 1/2-1/2


[Site "https://www.chess.com"]

[Event "Titled Tuesday Blitz November 14 Early 2023"]
[White "Sharapov, Evgeny"]
[Black "Pham, Le Thao Nguyen"]
[WhiteFideId "14103133"]
[BlackFideId "12401226"]
[WhiteElo "2570"]
[BlackElo "2549"]
[Result "1/2-1/2"]
[Round "4"]
[TimeControl "180+1"]
[Date "2023.11.14"]
[WhiteClock "0:01:59"]
[BlackClock "0:00:30"]
[Board "122"]

1. e4 {[%clk 0:03:00]}  c6 {[%clk 0:02:59]} 2. d4 {[%clk 0:02:59]}  d5 {[%clk 0:02:59]} 3. e5 {[%clk 0:03:00]}  Bf5 {[%clk 0:02:59]} 4. Be3 {[%clk 0:03:00]}  e6 {[%clk 0:02:59]} 5. c4 {[%clk 0:03:00]}  Ne7 {[%clk 0:02:57]} 6. Nc3 {[%clk 0:03:00]}  Nd7 {[%clk 0:02:53]} 7. c5 {[%clk 0:02:59]}  b5 {[%clk 0:02:31]} 8. f4 {[%clk 0:02:56]}  h5 {[%clk 0:02:30]} 9. Nf3 {[%clk 0:02:56]}  a5 {[%clk 0:02:16]} 10. Be2 {[%clk 0:02:56]}  Bg4 {[%clk 0:01:54]} 11. O-O {[%clk 0:02:55]}  Nf5 {[%clk 0:01:52]} 12. Bf2 {[%clk 0:02:55]}  Be7 {[%clk 0:01:50]} 13. h3 {[%clk 0:02:55]}  Bxf3 {[%clk 0:01:48]} 14. Bxf3 {[%clk 0:02:55]}  g6 {[%clk 0:01:48]} 15. Qd2 {[%clk 0:02:52]}  Bh4 {[%clk 0:01:40]} 16. Bxh4 {[%clk 0:02:40]}  Qxh4 {[%clk 0:01:39]} 17. Ne2 {[%clk 0:02:36]}  Rg8 {[%clk 0:01:29]} 18. Qe1 {[%clk 0:02:33]}  Qxe1 {[%clk 0:01:26]} 19. Rfxe1 {[%clk 0:02:32]}  h4 {[%clk 0:01:27]} 20. Kf2 {[%clk 0:02:31]}  Ke7 {[%clk 0:01:10]} 21. Bg4 {[%clk 0:02:26]}  Rg7 {[%clk 0:01:09]} 22. Rad1 {[%clk 0:02:25]}  Nf8 {[%clk 0:00:56]} 23. Ng1 {[%clk 0:02:23]}  Nd7 {[%clk 0:00:39]} 24. Nf3 {[%clk 0:02:23]}  Rh8 {[%clk 0:00:40]} 25. Rg1 {[%clk 0:02:19]}  Rh6 {[%clk 0:00:39]} 26. Bxf5 {[%clk 0:02:15]}  gxf5 {[%clk 0:00:38]} 27. g3 {[%clk 0:02:11]}  hxg3+ {[%clk 0:00:39]} 28. Rxg3 {[%clk 0:02:11]}  Rxg3 {[%clk 0:00:36]} 29. Kxg3 {[%clk 0:02:12]}  Nf8 {[%clk 0:00:36]} 30. Ng5 {[%clk 0:02:06]}  Ng6 {[%clk 0:00:36]} 31. Rf1 {[%clk 0:02:03]}  Rh4 {[%clk 0:00:34]} 32. Rf2 {[%clk 0:02:02]}  Kf8 {[%clk 0:00:30]} 33. Rf1 {[%clk 0:02:02]}  Ke7 {[%clk 0:00:30]} 34. Rf2 {[%clk 0:02:00]}  Kf8 {[%clk 0:00:30]} 35. Rf1 {[%clk 0:01:59]}  Ke7 {[%clk 0:00:30]} 1/2-1/2


[Site "https://www.chess.com"]

[Event "Titled Tuesday Blitz November 14 Early 2023"]
[White "Yeletsky, Ivan"]
[Black "dumbernugget"]
[WhiteFideId "24180327"]
[WhiteElo "2897"]
[BlackElo "2029"]
[Result "1-0"]
[Round "4"]
[TimeControl "180+1"]
[Date "2023.11.14"]
[WhiteClock "0:01:22"]
[BlackClock "0:00:08"]
[Board "125"]

1. e4 {[%clk 0:02:27]}  c5 {[%clk 0:02:58]} 2. Nf3 {[%clk 0:02:27]}  d6 {[%clk 0:02:58]} 3. d4 {[%clk 0:02:27]}  cxd4 {[%clk 0:02:58]} 4. Nxd4 {[%clk 0:02:27]}  Nf6 {[%clk 0:02:58]} 5. Nd2 {[%clk 0:02:27]}  g6 {[%clk 0:02:59]} 6. c4 {[%clk 0:02:24]}  Bg7 {[%clk 0:02:55]} 7. Be2 {[%clk 0:02:23]}  O-O {[%clk 0:02:55]} 8. O-O {[%clk 0:02:23]}  Nc6 {[%clk 0:02:54]} 9. Nxc6 {[%clk 0:02:23]}  bxc6 {[%clk 0:02:54]} 10. Rb1 {[%clk 0:02:24]}  d5 {[%clk 0:02:45]} 11. cxd5 {[%clk 0:02:20]}  cxd5 {[%clk 0:02:45]} 12. e5 {[%clk 0:02:21]}  Nd7 {[%clk 0:02:44]} 13. Nf3 {[%clk 0:02:21]}  Nxe5 {[%clk 0:02:38]} 14. Nxe5 {[%clk 0:02:17]}  Bxe5 {[%clk 0:02:37]} 15. Bh6 {[%clk 0:02:18]}  Bg7 {[%clk 0:02:34]} 16. Bxg7 {[%clk 0:02:18]}  Kxg7 {[%clk 0:02:34]} 17. Bf3 {[%clk 0:02:19]}  e6 {[%clk 0:02:26]} 18. b4 {[%clk 0:02:17]}  Rb8 {[%clk 0:02:24]} 19. a4 {[%clk 0:02:17]}  Bd7 {[%clk 0:02:23]} 20. b5 {[%clk 0:02:17]}  Qb6 {[%clk 0:02:16]} 21. Qd2 {[%clk 0:02:13]}  a6 {[%clk 0:02:16]} 22. h4 {[%clk 0:02:04]}  axb5 {[%clk 0:02:15]} 23. axb5 {[%clk 0:02:04]}  h6 {[%clk 0:01:54]} 24. Rfe1 {[%clk 0:01:52]}  Qc5 {[%clk 0:01:48]} 25. Rec1 {[%clk 0:01:47]}  Qe7 {[%clk 0:01:42]} 26. b6 {[%clk 0:01:44]}  Qxh4 {[%clk 0:01:39]} 27. Rc7 {[%clk 0:01:44]}  Rfd8 {[%clk 0:01:32]} 28. b7 {[%clk 0:01:42]}  Qe7 {[%clk 0:01:18]} 29. Qc3+ {[%clk 0:01:37]}  Qf6 {[%clk 0:01:11]} 30. Qc5 {[%clk 0:01:35]}  Qf5 {[%clk 0:01:03]} 31. Ra1 {[%clk 0:01:32]}  Qf6 {[%clk 0:00:38]} 32. Ra7 {[%clk 0:01:29]}  d4 {[%clk 0:00:25]} 33. Be4 {[%clk 0:01:22]}  e5 {[%clk 0:00:20]} 34. Ra8 {[%clk 0:01:21]}  Rxa8 {[%clk 0:00:19]} 35. bxa8=Q {[%clk 0:01:21]}  Rxa8 {[%clk 0:00:14]} 36. Bxa8 {[%clk 0:01:22]}  Be6 {[%clk 0:00:13]} 37. Bd5 {[%clk 0:01:22]}  Bf5 {[%clk 0:00:08]} 38. Rxf7+ {[%clk 0:01:22]} 1-0


[Site "https://www.chess.com"]

[Event "Titled Tuesday Blitz November 14 Early 2023"]
[White "GaiozNigalidze"]
[Black "Joie, Sebastien"]
[BlackFideId "650420"]
[WhiteElo "2744"]
[BlackElo "2434"]
[Result "0-1"]
[Round "4"]
[TimeControl "180+1"]
[Date "2023.11.14"]
[WhiteClock "0:01:00"]
[BlackClock "0:00:03"]
[Board "126"]

1. e4 {[%clk 0:03:00]}  c5 {[%clk 0:03:00]} 2. Nf3 {[%clk 0:03:01]}  Nc6 {[%clk 0:02:59]} 3. d4 {[%clk 0:03:01]}  cxd4 {[%clk 0:02:59]} 4. Nxd4 {[%clk 0:03:02]}  g6 {[%clk 0:03:00]} 5. Nc3 {[%clk 0:03:02]}  Bg7 {[%clk 0:03:00]} 6. Bc4 {[%clk 0:03:02]}  Nf6 {[%clk 0:03:01]} 7. Be3 {[%clk 0:02:58]}  O-O {[%clk 0:03:00]} 8. f3 {[%clk 0:02:56]}  Qb6 {[%clk 0:02:59]} 9. Rb1 {[%clk 0:02:43]}  Ng4 {[%clk 0:02:43]} 10. fxg4 {[%clk 0:02:36]}  Nxd4 {[%clk 0:02:29]} 11. Nd5 {[%clk 0:02:31]}  Qc5 {[%clk 0:02:21]} 12. Qd3 {[%clk 0:02:12]}  b5 {[%clk 0:01:58]} 13. Bb3 {[%clk 0:02:03]}  e6 {[%clk 0:01:29]} 14. c3 {[%clk 0:02:02]}  exd5 {[%clk 0:01:20]} 15. cxd4 {[%clk 0:02:03]}  Qb4+ {[%clk 0:00:26]} 16. Bd2 {[%clk 0:02:03]}  dxe4 {[%clk 0:00:05]} 17. Qxe4 {[%clk 0:02:01]}  Qxd4 {[%clk 0:00:05]} 18. Qxa8 {[%clk 0:01:46]}  Re8+ {[%clk 0:00:04]} 19. Kf1 {[%clk 0:01:42]}  Qxd2 {[%clk 0:00:03]} 20. Qf3 {[%clk 0:01:42]}  b4 {[%clk 0:00:03]} 21. Bc4 {[%clk 0:01:40]}  Re7 {[%clk 0:00:01]} 22. b3 {[%clk 0:01:36]}  Qd4 {[%clk 0:00:02]} 23. Rd1 {[%clk 0:01:31]}  Qc3 {[%clk 0:00:01]} 24. h4 {[%clk 0:01:28]}  d5 {[%clk 0:00:02]} 25. Qxd5 {[%clk 0:01:24]}  Bxg4 {[%clk 0:00:01]} 26. Qd8+ {[%clk 0:01:23]}  Bf8 {[%clk 0:00:02]} 27. Kf2 {[%clk 0:01:17]}  Bxd1 {[%clk 0:00:01]} 28. Rxd1 {[%clk 0:01:18]}  Qe3+ {[%clk 0:00:02]} 29. Kf1 {[%clk 0:01:19]}  Qf4+ {[%clk 0:00:02]} 30. Kg1 {[%clk 0:01:18]}  Qxh4 {[%clk 0:00:02]} 31. Qd4 {[%clk 0:01:19]}  Qg5 {[%clk 0:00:02]} 32. Rf1 {[%clk 0:01:16]}  Rc7 {[%clk 0:00:02]} 33. Qd3 {[%clk 0:01:07]}  Bc5+ {[%clk 0:00:02]} 34. Kh1 {[%clk 0:01:08]}  Qh4+ {[%clk 0:00:02]} 35. Qh3 {[%clk 0:01:09]}  Qg5 {[%clk 0:00:03]} 36. Qf3 {[%clk 0:01:08]}  Kg7 {[%clk 0:00:02]} 37. g3 {[%clk 0:01:05]}  f6 {[%clk 0:00:03]} 38. Kg2 {[%clk 0:01:05]}  Re7 {[%clk 0:00:03]} 39. Rd1 {[%clk 0:01:05]}  Be3 {[%clk 0:00:02]} 40. Re1 {[%clk 0:01:04]}  Bc5 {[%clk 0:00:02]} 41. Rd1 {[%clk 0:01:05]}  Qe5 {[%clk 0:00:01]} 42. Rd2 {[%clk 0:01:04]}  Qc3 {[%clk 0:00:01]} 43. Rd8 {[%clk 0:01:02]}  Qc1 {[%clk 0:00:01]} 44. Rd1 {[%clk 0:01:01]}  Qc3 {[%clk 0:00:01]} 45. Kh3 {[%clk 0:01:02]}  Qxf3 {[%clk 0:00:01]} 46. Rd7 {[%clk 0:01:01]}  Qh5+ {[%clk 0:00:02]} 47. Kg2 {[%clk 0:01:02]}  Rxd7 {[%clk 0:00:03]} 48. Be6 {[%clk 0:01:00]}  Qd1 {[%clk 0:00:03]} 0-1


[Site "https://www.chess.com"]